[Event "Titled Tuesday Blitz July 11 Early 2023"]
[White "Dubov, Daniil"]
[Black "Sattarov, Bobir"]
[WhiteFideId "24126055"]
[BlackFideId "14203081"]
[WhiteElo "3084"]
[BlackElo "2845"]
[Result "1-0"]
[Round "5"]
[TimeControl "180+2"]
[Date "2023.07.11"]
[WhiteClock "0:00:06"]
[BlackClock "0:00:04"]
[Board "4"]

1. e4 {[%clk 0:03:00]}  e5 {[%clk 0:03:00]} 2. Nf3 {[%clk 0:03:01]}  Nc6 {[%clk 0:03:01]} 3. Nc3 {[%clk 0:03:01]}  Nf6 {[%clk 0:03:00]} 4. Bc4 {[%clk 0:03:02]}  Bc5 {[%clk 0:03:00]} 5. d3 {[%clk 0:03:00]}  a6 {[%clk 0:02:59]} 6. Bg5 {[%clk 0:02:53]}  h6 {[%clk 0:02:31]} 7. Bxf6 {[%clk 0:02:53]}  Qxf6 {[%clk 0:02:32]} 8. Nd5 {[%clk 0:02:53]}  Qd8 {[%clk 0:02:33]} 9. c3 {[%clk 0:02:53]}  d6 {[%clk 0:02:29]} 10. d4 {[%clk 0:02:50]}  Ba7 {[%clk 0:02:17]} 11. dxe5 {[%clk 0:02:50]}  Nxe5 {[%clk 0:02:13]} 12. Nxe5 {[%clk 0:02:49]}  dxe5 {[%clk 0:02:14]} 13. Qh5 {[%clk 0:02:49]}  O-O {[%clk 0:02:08]} 14. Qxe5 {[%clk 0:02:48]}  Re8 {[%clk 0:01:53]} 15. Qf4 {[%clk 0:02:47]}  Qd6 {[%clk 0:01:45]} 16. O-O-O {[%clk 0:02:22]}  Qxf4+ {[%clk 0:01:43]} 17. Nxf4 {[%clk 0:02:23]}  Bxf2 {[%clk 0:01:42]} 18. Nd5 {[%clk 0:02:21]}  Rxe4 {[%clk 0:01:30]} 19. Nxc7 {[%clk 0:02:14]}  Rxc4 {[%clk 0:01:25]} 20. Rd8+ {[%clk 0:02:02]}  Kh7 {[%clk 0:01:25]} 21. Nxa8 {[%clk 0:02:02]}  Be3+ {[%clk 0:01:13]} 22. Kb1 {[%clk 0:01:58]}  Bf5+ {[%clk 0:01:12]} 23. Ka1 {[%clk 0:01:58]}  Rf4 {[%clk 0:01:11]} 24. Re8 {[%clk 0:01:35]}  Ba7 {[%clk 0:01:01]} 25. Re2 {[%clk 0:01:31]}  Bd3 {[%clk 0:00:55]} 26. Rd2 {[%clk 0:01:28]}  Be4 {[%clk 0:00:50]} 27. Re1 {[%clk 0:01:22]}  Bf2 {[%clk 0:00:39]} 28. Rf1 {[%clk 0:01:20]}  Be3 {[%clk 0:00:39]} 29. Rxf4 {[%clk 0:01:19]}  Bxf4 {[%clk 0:00:40]} 30. Rd4 {[%clk 0:00:56]}  f5 {[%clk 0:00:39]} 31. g3 {[%clk 0:00:57]}  Be3 {[%clk 0:00:34]} 32. Rd1 {[%clk 0:00:57]}  g5 {[%clk 0:00:32]} 33. Nc7 {[%clk 0:00:57]}  f4 {[%clk 0:00:31]} 34. Nd5 {[%clk 0:00:27]}  Bxd5 {[%clk 0:00:21]} 35. Rxd5 {[%clk 0:00:26]}  Kg6 {[%clk 0:00:20]} 36. g4 {[%clk 0:00:14]}  f3 {[%clk 0:00:19]} 37. Kb1 {[%clk 0:00:11]}  f2 {[%clk 0:00:15]} 38. Rd6+ {[%clk 0:00:11]}  Kf7 {[%clk 0:00:14]} 39. Rd1 {[%clk 0:00:12]}  Ke6 {[%clk 0:00:14]} 40. Kc2 {[%clk 0:00:11]}  Ke5 {[%clk 0:00:14]} 41. Kd3 {[%clk 0:00:10]}  Kf4 {[%clk 0:00:15]} 42. Ke2 {[%clk 0:00:11]}  Ba7 {[%clk 0:00:13]} 43. Rd7 {[%clk 0:00:08]}  Kxg4 {[%clk 0:00:12]} 44. Rxb7 {[%clk 0:00:08]}  Bc5 {[%clk 0:00:12]} 45. b4 {[%clk 0:00:08]}  Be3 {[%clk 0:00:11]} 46. Re7 {[%clk 0:00:08]}  Bd2 {[%clk 0:00:10]} 47. Kxf2 {[%clk 0:00:05]}  Bxc3 {[%clk 0:00:10]} 48. a3 {[%clk 0:00:05]}  Bb2 {[%clk 0:00:09]} 49. a4 {[%clk 0:00:05]}  h5 {[%clk 0:00:07]} 50. Kg2 {[%clk 0:00:05]}  h4 {[%clk 0:00:07]} 51. h3+ {[%clk 0:00:05]}  Kf5 {[%clk 0:00:07]} 52. Ra7 {[%clk 0:00:05]}  Bc3 {[%clk 0:00:06]} 53. Rxa6 {[%clk 0:00:05]}  Bxb4 {[%clk 0:00:07]} 54. Rb6 {[%clk 0:00:05]}  Bd2 {[%clk 0:00:05]} 55. a5 {[%clk 0:00:05]}  Be3 {[%clk 0:00:04]} 56. Rb7 {[%clk 0:00:04]}  Ke6 {[%clk 0:00:04]} 57. a6 {[%clk 0:00:05]}  Kd6 {[%clk 0:00:04]} 58. a7 {[%clk 0:00:06]}  Bxa7 {[%clk 0:00:05]} 59. Rxa7 {[%clk 0:00:06]}  g4 {[%clk 0:00:04]} 60. hxg4 {[%clk 0:00:06]} 1-0


[Site "https://www.chess.com"]

[Event "Titled Tuesday Blitz July 11 Early 2023"]
[White "Vakhlamov, Igor L."]
[Black "Bluebaum, Matthias"]
[WhiteFideId "24126748"]
[BlackFideId "24651516"]
[WhiteElo "2807"]
[BlackElo "3059"]
[Result "1-0"]
[Round "5"]
[TimeControl "180+2"]
[Date "2023.07.11"]
[WhiteClock "0:00:03"]
[BlackClock "0:01:32"]
[Board "5"]

1. e4 {[%clk 0:02:51]}  e6 {[%clk 0:02:59]} 2. d4 {[%clk 0:02:51]}  d5 {[%clk 0:03:00]} 3. Nc3 {[%clk 0:02:50]}  Nf6 {[%clk 0:03:00]} 4. Bd3 {[%clk 0:02:45]}  c5 {[%clk 0:03:00]} 5. exd5 {[%clk 0:02:45]}  cxd4 {[%clk 0:03:00]} 6. Bb5+ {[%clk 0:02:44]}  Bd7 {[%clk 0:03:00]} 7. Bxd7+ {[%clk 0:02:41]}  Qxd7 {[%clk 0:03:01]} 8. Qxd4 {[%clk 0:02:37]}  Nc6 {[%clk 0:03:01]} 9. Qd1 {[%clk 0:02:22]}  exd5 {[%clk 0:02:57]} 10. Nf3 {[%clk 0:02:23]}  Bb4 {[%clk 0:02:46]} 11. O-O {[%clk 0:02:22]}  O-O {[%clk 0:02:46]} 12. Ne2 {[%clk 0:02:18]}  h6 {[%clk 0:02:42]} 13. c3 {[%clk 0:02:17]}  Bc5 {[%clk 0:02:41]} 14. Ned4 {[%clk 0:02:15]}  Rfe8 {[%clk 0:02:40]} 15. Be3 {[%clk 0:02:09]}  Bb6 {[%clk 0:02:37]} 16. Re1 {[%clk 0:02:08]}  Re4 {[%clk 0:02:31]} 17. h3 {[%clk 0:01:43]}  Rae8 {[%clk 0:02:30]} 18. Qd2 {[%clk 0:01:43]}  Bc7 {[%clk 0:02:19]} 19. Rad1 {[%clk 0:01:38]}  a6 {[%clk 0:02:17]} 20. Nb3 {[%clk 0:01:25]}  R4e7 {[%clk 0:02:06]} 21. Bc5 {[%clk 0:01:20]}  Ne4 {[%clk 0:02:01]} 22. Qxd5 {[%clk 0:00:48]}  Nxc5 {[%clk 0:01:41]} 23. Rxe7 {[%clk 0:00:22]}  Qxe7 {[%clk 0:01:42]} 24. Qxc5 {[%clk 0:00:19]}  Qe2 {[%clk 0:01:43]} 25. Rb1 {[%clk 0:00:12]}  Qc2 {[%clk 0:01:43]} 26. Nbd2 {[%clk 0:00:12]}  Bf4 {[%clk 0:01:33]} 27. Qd5 {[%clk 0:00:01]}  Bxd2 {[%clk 0:01:30]} 28. Qxd2 {[%clk 0:00:01]}  Rd8 {[%clk 0:01:30]} 29. Qxc2 {[%clk 0:00:01]}  Nd4 {[%clk 0:01:25]} 30. cxd4 {[%clk 0:00:02]}  Rc8 {[%clk 0:01:26]} 31. Qxc8+ {[%clk 0:00:01]}  Kh7 {[%clk 0:01:27]} 32. Qxb7 {[%clk 0:00:02]}  Kg6 {[%clk 0:01:28]} 33. Qxa6+ {[%clk 0:00:03]}  Kh5 {[%clk 0:01:28]} 34. Qd3 {[%clk 0:00:03]}  g5 {[%clk 0:01:29]} 35. Ne5 {[%clk 0:00:03]}  f5 {[%clk 0:01:30]} 36. Qf3+ {[%clk 0:00:03]}  Kh4 {[%clk 0:01:31]} 37. g3+ {[%clk 0:00:03]}  Kxh3 {[%clk 0:01:32]} 38. Qh1# {[%clk 0:00:03]} 1-0


[Site "https://www.chess.com"]

[Event "Titled Tuesday Blitz July 11 Early 2023"]
[White "Kollars, Dmitrij"]
[Black "Bachmann, Axel"]
[WhiteFideId "12909572"]
[BlackFideId "3700488"]
[WhiteElo "3015"]
[BlackElo "2795"]
[Result "0-1"]
[Round "5"]
[TimeControl "180+2"]
[Date "2023.07.11"]
[WhiteClock "0:00:00"]
[BlackClock "0:00:21"]
[Board "7"]

1. d4 {[%clk 0:03:00]}  d5 {[%clk 0:02:55]} 2. c4 {[%clk 0:03:00]}  dxc4 {[%clk 0:02:55]} 3. Nf3 {[%clk 0:02:58]}  Nf6 {[%clk 0:02:54]} 4. e3 {[%clk 0:02:57]}  b5 {[%clk 0:02:53]} 5. a4 {[%clk 0:02:49]}  b4 {[%clk 0:02:53]} 6. Bxc4 {[%clk 0:02:49]}  e6 {[%clk 0:02:54]} 7. O-O {[%clk 0:02:48]}  Be7 {[%clk 0:02:54]} 8. Nbd2 {[%clk 0:02:40]}  O-O {[%clk 0:02:44]} 9. a5 {[%clk 0:02:29]}  c5 {[%clk 0:02:33]} 10. Nb3 {[%clk 0:02:19]}  cxd4 {[%clk 0:02:28]} 11. Nbxd4 {[%clk 0:02:20]}  Bb7 {[%clk 0:02:17]} 12. a6 {[%clk 0:02:19]}  Bd5 {[%clk 0:02:17]} 13. Bb5 {[%clk 0:02:15]}  Qb6 {[%clk 0:02:10]} 14. Bd2 {[%clk 0:01:59]}  Nc6 {[%clk 0:01:40]} 15. Qa4 {[%clk 0:01:49]}  Nxd4 {[%clk 0:01:40]} 16. Nxd4 {[%clk 0:01:50]}  Rab8 {[%clk 0:00:56]} 17. Rfc1 {[%clk 0:01:34]}  Ne4 {[%clk 0:00:55]} 18. Be1 {[%clk 0:01:27]}  Bc5 {[%clk 0:00:55]} 19. Bf1 {[%clk 0:00:40]}  Bxd4 {[%clk 0:00:55]} 20. exd4 {[%clk 0:00:41]}  Qxd4 {[%clk 0:00:56]} 21. Rc7 {[%clk 0:00:37]}  Qxb2 {[%clk 0:00:53]} 22. Rxa7 {[%clk 0:00:27]}  Nc3 {[%clk 0:00:44]} 23. Qa5 {[%clk 0:00:27]}  Ne2+ {[%clk 0:00:32]} 24. Bxe2 {[%clk 0:00:16]}  Qxe2 {[%clk 0:00:33]} 25. Rc7 {[%clk 0:00:16]}  b3 {[%clk 0:00:30]} 26. a7 {[%clk 0:00:16]}  Ra8 {[%clk 0:00:29]} 27. Qc3 {[%clk 0:00:12]}  b2 {[%clk 0:00:27]} 28. f3 {[%clk 0:00:02]}  bxa1=Q {[%clk 0:00:26]} 29. Qxa1 {[%clk 0:00:03]}  Rfc8 {[%clk 0:00:22]} 30. Rd7 {[%clk 0:00:00]}  Rc2 {[%clk 0:00:21]} 0-1


[Site "https://www.chess.com"]

[Event "Titled Tuesday Blitz July 11 Early 2023"]
[White "He, Anthony"]
[Black "Maximov, Dmitry"]
[WhiteFideId "2088215"]
[BlackFideId "14105659"]
[WhiteElo "2998"]
[BlackElo "2784"]
[Result "1-0"]
[Round "5"]
[TimeControl "180+2"]
[Date "2023.07.11"]
[WhiteClock "0:00:09"]
[BlackClock "0:00:08"]
[Board "8"]

1. e4 {[%clk 0:03:00]}  c5 {[%clk 0:02:59]} 2. Nf3 {[%clk 0:02:58]}  d6 {[%clk 0:03:00]} 3. d4 {[%clk 0:02:59]}  cxd4 {[%clk 0:03:00]} 4. Nxd4 {[%clk 0:02:59]}  Nf6 {[%clk 0:03:01]} 5. Nc3 {[%clk 0:02:59]}  a6 {[%clk 0:03:00]} 6. h3 {[%clk 0:02:59]}  g6 {[%clk 0:02:59]} 7. g4 {[%clk 0:02:59]}  Bg7 {[%clk 0:02:59]} 8. g5 {[%clk 0:03:00]}  Nfd7 {[%clk 0:02:59]} 9. h4 {[%clk 0:03:00]}  Nc6 {[%clk 0:02:57]} 10. Be3 {[%clk 0:03:00]}  O-O {[%clk 0:02:54]} 11. h5 {[%clk 0:03:00]}  Re8 {[%clk 0:02:24]} 12. hxg6 {[%clk 0:02:55]}  hxg6 {[%clk 0:02:23]} 13. Qd2 {[%clk 0:02:48]}  Nf8 {[%clk 0:02:16]} 14. O-O-O {[%clk 0:02:38]}  Bd7 {[%clk 0:02:14]} 15. f3 {[%clk 0:02:25]}  Rc8 {[%clk 0:02:12]} 16. Qh2 {[%clk 0:02:17]}  Nxd4 {[%clk 0:02:00]} 17. Bxd4 {[%clk 0:02:17]}  e5 {[%clk 0:02:00]} 18. Be3 {[%clk 0:02:14]}  Rxc3 {[%clk 0:02:00]} 19. bxc3 {[%clk 0:02:15]}  Qc7 {[%clk 0:01:52]} 20. Qd2 {[%clk 0:02:09]}  Be6 {[%clk 0:01:52]} 21. Kb2 {[%clk 0:02:07]}  Rc8 {[%clk 0:01:51]} 22. Bh3 {[%clk 0:02:05]}  Qc4 {[%clk 0:01:23]} 23. Bxe6 {[%clk 0:02:03]}  Nxe6 {[%clk 0:01:23]} 24. Qd3 {[%clk 0:02:01]}  Qc6 {[%clk 0:01:21]} 25. c4 {[%clk 0:01:53]}  b5 {[%clk 0:01:15]} 26. cxb5 {[%clk 0:01:45]}  axb5 {[%clk 0:01:15]} 27. c3 {[%clk 0:01:27]}  Qc7 {[%clk 0:01:06]} 28. Rh2 {[%clk 0:01:19]}  d5 {[%clk 0:01:01]} 29. Rc2 {[%clk 0:01:08]}  dxe4 {[%clk 0:00:53]} 30. Qxe4 {[%clk 0:01:05]}  Qe7 {[%clk 0:00:45]} 31. Rd5 {[%clk 0:00:57]}  Rb8 {[%clk 0:00:44]} 32. Rxe5 {[%clk 0:00:47]}  b4 {[%clk 0:00:39]} 33. Ra5 {[%clk 0:00:26]}  bxc3+ {[%clk 0:00:38]} 34. Ka1 {[%clk 0:00:25]}  Qd7 {[%clk 0:00:33]} 35. Qd5 {[%clk 0:00:18]}  Qc7 {[%clk 0:00:32]} 36. Ra8 {[%clk 0:00:17]}  Rxa8 {[%clk 0:00:27]} 37. Qxa8+ {[%clk 0:00:18]}  Bf8 {[%clk 0:00:27]} 38. Qe4 {[%clk 0:00:07]}  Qg3 {[%clk 0:00:21]} 39. Bc1 {[%clk 0:00:05]}  Bg7 {[%clk 0:00:20]} 40. a4 {[%clk 0:00:05]}  Nxg5 {[%clk 0:00:17]} 41. Bxg5 {[%clk 0:00:04]}  Qxg5 {[%clk 0:00:17]} 42. Ka2 {[%clk 0:00:04]}  Qc5 {[%clk 0:00:17]} 43. Kb3 {[%clk 0:00:04]}  Qb6+ {[%clk 0:00:16]} 44. Qb4 {[%clk 0:00:04]}  Qe6+ {[%clk 0:00:16]} 45. Qc4 {[%clk 0:00:05]}  Qb6+ {[%clk 0:00:14]} 46. Ka2 {[%clk 0:00:05]}  Qe3 {[%clk 0:00:11]} 47. Qc8+ {[%clk 0:00:06]}  Bf8 {[%clk 0:00:09]} 48. Qxc3 {[%clk 0:00:06]}  Qe6+ {[%clk 0:00:09]} 49. Qb3 {[%clk 0:00:06]}  Qf5 {[%clk 0:00:08]} 50. Qc3 {[%clk 0:00:05]}  Bg7 {[%clk 0:00:08]} 51. Qc8+ {[%clk 0:00:05]}  Qxc8 {[%clk 0:00:08]} 52. Rxc8+ {[%clk 0:00:06]}  Kh7 {[%clk 0:00:09]} 53. a5 {[%clk 0:00:06]}  Bd4 {[%clk 0:00:09]} 54. a6 {[%clk 0:00:07]}  g5 {[%clk 0:00:09]} 55. Rc7 {[%clk 0:00:08]}  Kg6 {[%clk 0:00:09]} 56. a7 {[%clk 0:00:08]}  Bxa7 {[%clk 0:00:10]} 57. Rxa7 {[%clk 0:00:09]}  f5 {[%clk 0:00:09]} 58. Kb3 {[%clk 0:00:09]}  g4 {[%clk 0:00:08]} 59. fxg4 {[%clk 0:00:08]}  fxg4 {[%clk 0:00:09]} 60. Ra5 {[%clk 0:00:07]}  g3 {[%clk 0:00:08]} 61. Kc4 {[%clk 0:00:07]}  g2 {[%clk 0:00:08]} 62. Ra1 {[%clk 0:00:08]}  Kf5 {[%clk 0:00:09]} 63. Rg1 {[%clk 0:00:08]}  Kf4 {[%clk 0:00:08]} 64. Rxg2 {[%clk 0:00:09]} 1-0


[Site "https://www.chess.com"]

[Event "Titled Tuesday Blitz July 11 Early 2023"]
[White "Suleymanli, Suleyman"]
[Black "Tang, Andrew"]
[WhiteFideId "13416375"]
[BlackFideId "2059630"]
[WhiteElo "2708"]
[BlackElo "2917"]
[Result "1/2-1/2"]
[Round "5"]
[TimeControl "180+2"]
[Date "2023.07.11"]
[WhiteClock "0:00:09"]
[BlackClock "0:00:12"]
[Board "10"]

1. Nf3 {[%clk 0:02:18]}  d5 {[%clk 0:02:59]} 2. g3 {[%clk 0:02:17]}  Bg4 {[%clk 0:02:52]} 3. Bg2 {[%clk 0:02:17]}  Nd7 {[%clk 0:02:49]} 4. d4 {[%clk 0:02:16]}  e6 {[%clk 0:02:48]} 5. O-O {[%clk 0:02:16]}  c6 {[%clk 0:02:47]} 6. c4 {[%clk 0:02:16]}  Bd6 {[%clk 0:02:44]} 7. Nc3 {[%clk 0:02:16]}  Ne7 {[%clk 0:02:44]} 8. b3 {[%clk 0:02:14]}  O-O {[%clk 0:02:44]} 9. Bb2 {[%clk 0:02:14]}  f5 {[%clk 0:02:33]} 10. h3 {[%clk 0:02:12]}  Bh5 {[%clk 0:02:33]} 11. e3 {[%clk 0:02:10]}  Nf6 {[%clk 0:02:33]} 12. Qd3 {[%clk 0:02:09]}  Ne4 {[%clk 0:02:26]} 13. Ne5 {[%clk 0:02:04]}  Ng6 {[%clk 0:02:08]} 14. Nxg6 {[%clk 0:01:52]}  hxg6 {[%clk 0:01:26]} 15. Ne2 {[%clk 0:01:47]}  g5 {[%clk 0:01:21]} 16. Kh2 {[%clk 0:01:38]}  Qf6 {[%clk 0:00:57]} 17. f3 {[%clk 0:01:33]}  Nxg3 {[%clk 0:00:19]} 18. Nxg3 {[%clk 0:01:30]}  Qh6 {[%clk 0:00:14]} 19. f4 {[%clk 0:01:14]}  gxf4 {[%clk 0:00:14]} 20. exf4 {[%clk 0:01:14]}  Bxf4 {[%clk 0:00:15]} 21. Bc1 {[%clk 0:01:14]}  Bxc1 {[%clk 0:00:13]} 22. Raxc1 {[%clk 0:01:14]}  Bg4 {[%clk 0:00:13]} 23. Nh1 {[%clk 0:00:59]}  f4 {[%clk 0:00:13]} 24. Nf2 {[%clk 0:00:59]}  Bf5 {[%clk 0:00:12]} 25. Qf3 {[%clk 0:00:48]}  Rf6 {[%clk 0:00:12]} 26. Ng4 {[%clk 0:00:36]}  Bxg4 {[%clk 0:00:13]} 27. Qxg4 {[%clk 0:00:36]}  Raf8 {[%clk 0:00:12]} 28. Rce1 {[%clk 0:00:33]}  Rg6 {[%clk 0:00:06]} 29. Qe2 {[%clk 0:00:33]}  Rff6 {[%clk 0:00:06]} 30. Rf3 {[%clk 0:00:32]}  Rg5 {[%clk 0:00:04]} 31. Ref1 {[%clk 0:00:28]}  Rh5 {[%clk 0:00:03]} 32. Kh1 {[%clk 0:00:20]}  g5 {[%clk 0:00:03]} 33. Qe5 {[%clk 0:00:18]}  g4 {[%clk 0:00:03]} 34. Rxf4 {[%clk 0:00:13]}  Rxe5 {[%clk 0:00:02]} 35. Rxf6 {[%clk 0:00:13]}  Qe3 {[%clk 0:00:03]} 36. dxe5 {[%clk 0:00:12]}  gxh3 {[%clk 0:00:03]} 37. Bf3 {[%clk 0:00:09]}  Qxe5 {[%clk 0:00:04]} 38. Rg1+ {[%clk 0:00:10]}  Kh7 {[%clk 0:00:03]} 39. Rf7+ {[%clk 0:00:10]}  Kh6 {[%clk 0:00:04]} 40. Rf8 {[%clk 0:00:10]}  Qc3 {[%clk 0:00:03]} 41. Rg3 {[%clk 0:00:08]}  Qe1+ {[%clk 0:00:03]} 42. Kh2 {[%clk 0:00:09]}  Qf2+ {[%clk 0:00:03]} 43. Kxh3 {[%clk 0:00:10]}  Qd4 {[%clk 0:00:03]} 44. Rg4 {[%clk 0:00:09]}  Qc3 {[%clk 0:00:04]} 45. Kg2 {[%clk 0:00:07]}  a5 {[%clk 0:00:03]} 46. Rfg8 {[%clk 0:00:07]}  Qb2+ {[%clk 0:00:03]} 47. Kh3 {[%clk 0:00:08]}  Kh7 {[%clk 0:00:04]} 48. R8g5 {[%clk 0:00:07]}  Kh6 {[%clk 0:00:04]} 49. Rg8 {[%clk 0:00:08]}  Kh7 {[%clk 0:00:04]} 50. Rf8 {[%clk 0:00:08]}  Qc3 {[%clk 0:00:04]} 51. Kg2 {[%clk 0:00:08]}  a4 {[%clk 0:00:05]} 52. bxa4 {[%clk 0:00:05]}  Qb2+ {[%clk 0:00:05]} 53. Kh3 {[%clk 0:00:05]}  Qxa2 {[%clk 0:00:06]} 54. Rf7+ {[%clk 0:00:03]}  Kh6 {[%clk 0:00:06]} 55. Rf6+ {[%clk 0:00:04]}  Kh7 {[%clk 0:00:06]} 56. Rf7+ {[%clk 0:00:04]}  Kh6 {[%clk 0:00:07]} 57. Rf6+ {[%clk 0:00:03]}  Kh7 {[%clk 0:00:07]} 58. Rxe6 {[%clk 0:00:04]}  Qb3 {[%clk 0:00:08]} 59. Re7+ {[%clk 0:00:04]}  Kh6 {[%clk 0:00:08]} 60. Kg3 {[%clk 0:00:05]}  dxc4 {[%clk 0:00:08]} 61. Re6+ {[%clk 0:00:05]}  Kh7 {[%clk 0:00:09]} 62. Kg2 {[%clk 0:00:06]}  Qb2+ {[%clk 0:00:09]} 63. Kh3 {[%clk 0:00:06]}  Qa3 {[%clk 0:00:09]} 64. Rf6 {[%clk 0:00:07]}  Qe7 {[%clk 0:00:09]} 65. Rf5 {[%clk 0:00:06]}  Kh6 {[%clk 0:00:09]} 66. Rff4 {[%clk 0:00:06]}  Qa3 {[%clk 0:00:09]} 67. Rf5 {[%clk 0:00:06]}  b5 {[%clk 0:00:09]} 68. axb5 {[%clk 0:00:06]}  cxb5 {[%clk 0:00:10]} 69. Kg3 {[%clk 0:00:06]}  Qd6+ {[%clk 0:00:09]} 70. Kg2 {[%clk 0:00:07]}  c3 {[%clk 0:00:09]} 71. Rfg5 {[%clk 0:00:03]}  c2 {[%clk 0:00:08]} 72. Rg8 {[%clk 0:00:03]}  Qf6 {[%clk 0:00:07]} 73. Rg3 {[%clk 0:00:03]}  Kh7 {[%clk 0:00:06]} 74. R8g4 {[%clk 0:00:03]}  c1=Q {[%clk 0:00:06]} 75. Be4+ {[%clk 0:00:01]}  Qg6 {[%clk 0:00:05]} 76. Bxg6+ {[%clk 0:00:01]}  Kg7 {[%clk 0:00:05]} 77. Be4+ {[%clk 0:00:02]}  Kf6 {[%clk 0:00:06]} 78. Rf3+ {[%clk 0:00:02]}  Ke5 {[%clk 0:00:06]} 79. Rf5+ {[%clk 0:00:02]}  Kd4 {[%clk 0:00:06]} 80. Rd5+ {[%clk 0:00:02]}  Kc4 {[%clk 0:00:05]} 81. Rd7 {[%clk 0:00:02]}  Qb2+ {[%clk 0:00:05]} 82. Kh3 {[%clk 0:00:02]}  Qh8+ {[%clk 0:00:05]} 83. Kg3 {[%clk 0:00:03]}  Qe5+ {[%clk 0:00:06]} 84. Kf3 {[%clk 0:00:03]}  Kc3 {[%clk 0:00:06]} 85. Rd3+ {[%clk 0:00:03]}  Kb4 {[%clk 0:00:06]} 86. Rf4 {[%clk 0:00:03]}  Ka5 {[%clk 0:00:07]} 87. Rf5 {[%clk 0:00:04]}  Qb2 {[%clk 0:00:07]} 88. Rdd5 {[%clk 0:00:05]}  Kb6 {[%clk 0:00:07]} 89. Bd3 {[%clk 0:00:05]}  b4 {[%clk 0:00:07]} 90. Rf6+ {[%clk 0:00:06]}  Kc7 {[%clk 0:00:08]} 91. Rf7+ {[%clk 0:00:06]}  Kc6 {[%clk 0:00:08]} 92. Rff5 {[%clk 0:00:06]}  Qc3 {[%clk 0:00:09]} 93. Ke4 {[%clk 0:00:06]}  b3 {[%clk 0:00:09]} 94. Rfe5 {[%clk 0:00:03]}  b2 {[%clk 0:00:09]} 95. Rc5+ {[%clk 0:00:04]}  Qxc5 {[%clk 0:00:08]} 96. Rxc5+ {[%clk 0:00:05]}  Kxc5 {[%clk 0:00:09]} 97. Bb1 {[%clk 0:00:06]}  Kc4 {[%clk 0:00:09]} 98. Ke3 {[%clk 0:00:07]}  Kc3 {[%clk 0:00:10]} 99. Ke2 {[%clk 0:00:07]}  Kc4 {[%clk 0:00:11]} 100. Kd2 {[%clk 0:00:08]}  Kd4 {[%clk 0:00:11]} 101. Kc2 {[%clk 0:00:08]}  Kc4 {[%clk 0:00:12]} 102. Kxb2 {[%clk 0:00:09]} 1/2-1/2


[Site "https://www.chess.com"]

[Event "Titled Tuesday Blitz July 11 Early 2023"]
[White "Goryachkina, Aleksandra"]
[Black "Narayanan, Srinath"]
[WhiteFideId "4147103"]
[BlackFideId "5018420"]
[WhiteElo "2721"]
[BlackElo "2925"]
[Result "1/2-1/2"]
[Round "5"]
[TimeControl "180+2"]
[Date "2023.07.11"]
[WhiteClock "0:00:03"]
[BlackClock "0:00:17"]
[Board "13"]

1. e4 {[%clk 0:02:59]}  c5 {[%clk 0:02:59]} 2. Nf3 {[%clk 0:02:59]}  d6 {[%clk 0:03:00]} 3. Bb5+ {[%clk 0:02:56]}  Nd7 {[%clk 0:02:59]} 4. O-O {[%clk 0:02:54]}  Nf6 {[%clk 0:02:59]} 5. Re1 {[%clk 0:02:54]}  g6 {[%clk 0:02:59]} 6. c3 {[%clk 0:02:52]}  a6 {[%clk 0:02:58]} 7. Bf1 {[%clk 0:02:49]}  Bg7 {[%clk 0:02:56]} 8. d4 {[%clk 0:02:48]}  O-O {[%clk 0:02:56]} 9. e5 {[%clk 0:02:34]}  Nd5 {[%clk 0:02:30]} 10. dxc5 {[%clk 0:02:30]}  Nc7 {[%clk 0:02:25]} 11. cxd6 {[%clk 0:02:20]}  exd6 {[%clk 0:02:25]} 12. exd6 {[%clk 0:02:20]}  Ne6 {[%clk 0:02:26]} 13. Nbd2 {[%clk 0:02:15]}  Ndc5 {[%clk 0:02:25]} 14. Nb3 {[%clk 0:02:06]}  Nxb3 {[%clk 0:02:24]} 15. axb3 {[%clk 0:02:06]}  Qb6 {[%clk 0:02:23]} 16. Be3 {[%clk 0:02:02]}  Qc6 {[%clk 0:02:23]} 17. b4 {[%clk 0:01:41]}  b5 {[%clk 0:02:01]} 18. Nd4 {[%clk 0:01:31]}  Nxd4 {[%clk 0:01:34]} 19. Bxd4 {[%clk 0:01:31]}  Qxd6 {[%clk 0:01:34]} 20. Bxg7 {[%clk 0:01:31]}  Qxd1 {[%clk 0:01:34]} 21. Rexd1 {[%clk 0:01:29]}  Kxg7 {[%clk 0:01:34]} 22. f3 {[%clk 0:01:08]}  Rb8 {[%clk 0:01:27]} 23. Rd6 {[%clk 0:01:07]}  Re8 {[%clk 0:01:24]} 24. Kf2 {[%clk 0:01:07]}  h5 {[%clk 0:01:06]} 25. Re1 {[%clk 0:01:04]}  Kf8 {[%clk 0:00:57]} 26. Red1 {[%clk 0:00:55]}  Ra8 {[%clk 0:00:48]} 27. h4 {[%clk 0:00:53]}  Ra7 {[%clk 0:00:42]} 28. Rd8 {[%clk 0:00:43]}  Rc7 {[%clk 0:00:36]} 29. Rxe8+ {[%clk 0:00:42]}  Kxe8 {[%clk 0:00:37]} 30. Rd6 {[%clk 0:00:43]}  Ke7 {[%clk 0:00:37]} 31. Rb6 {[%clk 0:00:42]}  Rd7 {[%clk 0:00:29]} 32. Ke3 {[%clk 0:00:40]}  Kd8 {[%clk 0:00:29]} 33. Bd3 {[%clk 0:00:38]}  Kc7 {[%clk 0:00:29]} 34. Rf6 {[%clk 0:00:38]}  Re7+ {[%clk 0:00:30]} 35. Be4 {[%clk 0:00:33]}  Be6 {[%clk 0:00:28]} 36. Kf4 {[%clk 0:00:32]}  Kd6 {[%clk 0:00:29]} 37. g4 {[%clk 0:00:29]}  hxg4 {[%clk 0:00:24]} 38. fxg4 {[%clk 0:00:30]}  Kd7 {[%clk 0:00:23]} 39. Bf3 {[%clk 0:00:24]}  Ke8 {[%clk 0:00:22]} 40. h5 {[%clk 0:00:23]}  Kf8 {[%clk 0:00:21]} 41. h6 {[%clk 0:00:22]}  Kg8 {[%clk 0:00:21]} 42. g5 {[%clk 0:00:22]}  Rc7 {[%clk 0:00:21]} 43. Ke5 {[%clk 0:00:21]}  Re7 {[%clk 0:00:18]} 44. Kd6 {[%clk 0:00:14]}  Rd7+ {[%clk 0:00:18]} 45. Kc5 {[%clk 0:00:14]}  Rd2 {[%clk 0:00:18]} 46. Bb7 {[%clk 0:00:10]}  Rxb2 {[%clk 0:00:16]} 47. Bxa6 {[%clk 0:00:10]}  Rc2 {[%clk 0:00:16]} 48. Kd4 {[%clk 0:00:09]}  Rd2+ {[%clk 0:00:15]} 49. Ke3 {[%clk 0:00:09]}  Rd5 {[%clk 0:00:16]} 50. Kf4 {[%clk 0:00:05]}  Rd3 {[%clk 0:00:16]} 51. Bxb5 {[%clk 0:00:05]}  Rxc3 {[%clk 0:00:17]} 52. Be2 {[%clk 0:00:04]}  Rc2 {[%clk 0:00:17]} 53. Ke3 {[%clk 0:00:03]}  Rc3+ {[%clk 0:00:17]} 54. Kf4 {[%clk 0:00:03]}  Rc2 {[%clk 0:00:17]} 55. Ke3 {[%clk 0:00:04]}  Rc3+ {[%clk 0:00:17]} 56. Kf4 {[%clk 0:00:03]} 1/2-1/2


[Site "https://www.chess.com"]